fUST/lending_fUST_20250920
["ID","MTS","AMOUNT","RATE_DAILY","PERIOD"]
[386536436,1758366459005,4836.8857676,0.00020689,2]
[386536437,1758366459043,480.0,0.00020788,2]
[386536438,1758366460046,109.2842055,0.00020684,4]
[386536439,1758366460068,495.89874161,0.00020684,4]
[386536440,1758366461740,764.61,0.00020788,2]
[386536441,1758366462361,1181.2897537,0.00019867,2]
[386536442,1758366463545,480.0,0.00020788,2]
[386536443,1758366468377,480.0,0.00020788,2]
[386536444,1758366473464,480.0,0.00020788,2]
[386536445,1758366474340,2568.59,0.00020788,2]
[386536446,1758366474449,480.0,0.00020788,2]
[386536447,1758366477032,898.39,0.00020788,2]
[386536448,1758366477358,480.0,0.00020788,2]
[386536449,1758366480393,483.67132997,0.00020788,2]
[386536450,1758366480454,561.38,0.0001935,2]
[386536451,1758366480866,646.18017472,0.00020271,2]
[386536452,1758366480891,476.57982528,0.00020271,2]
[386536453,1758366482372,150.0,0.00020788,2]
[386536454,1758366482688,480.0,0.00020788,2]
[386536455,1758366486009,493.66946441,0.00020788,2]
[386536456,1758366487010,436.87317553,0.00020788,2]
[386536457,1758366494839,480.0,0.00020788,2]
[386536458,1758366497866,480.0,0.00020788,2]
[386536459,1758366500704,480.0,0.00020788,2]
[386536460,1758366502249,480.0,0.00020788,2]
[386536461,1758366503197,2099.37,0.00020788,2]
[386536462,1758366504033,480.0,0.00020788,2]
[386536463,1758366507101,904.29,0.00020788,2]
[386536464,1758366507130,480.0,0.00020788,2]
[386536465,1758366514297,483.50126493,0.00020788,2]
[386536466,1758366515076,480.0,0.00020788,2]
[386536467,1758366517997,163.12909032,0.00020788,2]
[386536468,1758366518169,480.0,0.00020788,2]
[386536469,1758366520981,472.59717953,0.00020788,2]
[386536470,1758366521005,462.63282047,0.00020788,2]
[386536471,1758366521173,190.75601266,0.00020788,2]
[386536472,1758366522568,1152.00902274,0.000199,2]
[386536473,1758366523316,480.0,0.00020788,2]
[386536474,1758366525903,480.0,0.00020788,2]
[386536475,1758366525930,480.0,0.00020787,2]
[386536476,1758366527494,480.0,0.00020788,2]
[386536477,1758366529880,480.0,0.00020788,2]
[386536478,1758366536802,182.68100432,0.000207,2]
[386536479,1758366537049,480.0,0.00020787,2]
[386536480,1758366537540,480.0,0.00020788,2]
[386536481,1758366540376,491.29844566,0.00020788,2]
[386536482,1758366542024,374.17506121,0.00020788,2]
[386536483,1758366542321,480.0,0.00020788,2]
[386536484,1758366543123,480.0,0.00020788,2]
[386536485,1758366544043,486.3222526,0.00020788,2]
[386536486,1758366547191,480.0,0.00020788,2]
[386536487,1758366547600,480.0,0.00020788,2]
[386536488,1758366552075,-470.4,0.00020789,2]
[386536489,1758366554227,482.06282744,0.00020788,2]
[386536490,1758366555259,480.0,0.00020788,2]
[386536491,1758366556286,278.4970563,0.0001987,2]
[386536492,1758366557992,-3019.5754966,0.00020789,2]
[386536493,1758366558103,-10000.01,0.00020789,2]
[386536494,1758366558261,-4193.04206243,0.00020789,2]
[386536495,1758366558290,-500.0,0.00020789,2]
[386536496,1758366558318,-113.92587514,0.00020789,2]
[386536497,1758366558373,-386.07412486,0.00020789,2]
[386536498,1758366558409,-500.0,0.00020789,2]
[386536499,1758366558438,-500.0,0.00020789,2]
[386536500,1758366558467,-500.0,0.00020789,2]
[386536501,1758366558496,-500.0,0.00020789,2]
[386536502,1758366558524,-500.0,0.00020789,2]
[386536503,1758366558553,-500.0,0.00020789,2]
[386536504,1758366558585,-160.0,0.00020789,2]
[386536505,1758366558615,-480.0,0.00020789,2]
[386536506,1758366558645,-480.0,0.00020789,2]
[386536507,1758366558675,-500.0,0.00020789,2]
[386536508,1758366558969,-760.01,0.00020789,2]
[386536509,1758366559001,-10000.01,0.00020789,2]
[386536510,1758366559017,-10000.01,0.00020789,2]
[386536511,1758366559046,-10000.01,0.00020789,2]
[386536512,1758366562911,539.0,0.00020593,2]
[386536513,1758366563880,539.94,0.00019332,2]
[386536514,1758366564306,1079.89,0.00020253,2]
[386536515,1758366567375,-484.49480137,0.00020788,2]
[386536516,1758366567402,-492.14862477,0.00020788,2]
[386536517,1758366569033,480.0,0.00020788,2]
[386536518,1758366569854,483.74816362,0.00020788,2]
[386536519,1758366572217,480.0,0.00020788,2]
[386536520,1758366574635,1975.04,0.00020788,2]
[386536521,1758366575268,480.0,0.00020788,2]
[386536522,1758366579044,2249.33,0.00020788,2]
[386536523,1758366579318,480.0,0.00020788,2]
[386536524,1758366580015,480.0,0.00020788,2]
[386536525,1758366588600,480.0,0.00020788,2]
[386536526,1758366590601,458.6049841,0.00020788,2]
[386536527,1758366590623,21.3950159,0.00020788,2]
[386536528,1758366591216,389.1078232,0.00020788,2]
[386536529,1758366592753,480.0,0.00020788,2]
[386536530,1758366594009,398.67170093,0.00020788,2]
[386536531,1758366598625,480.0,0.00020788,2]
[386536532,1758366599054,1191.13,0.00020788,2]
[386536533,1758366599173,485.87168602,0.00020788,2]
[386536534,1758366600416,480.0,0.00020788,2]
[386536535,1758366602447,480.0,0.00020788,2]
[386536536,1758366602662,480.0,0.00020788,2]
[386536537,1758366605956,480.0,0.00020788,2]
[386536538,1758366607442,481.977123,0.00020788,2]
[386536539,1758366610033,162.98165458,0.00020777,2]
[386536540,1758366611001,480.0,0.00020788,2]
[386536541,1758366611029,488.95365151,0.00020788,2]
[386536542,1758366611443,480.0,0.00020788,2]
[386536543,1758366614495,239.413,0.00020777,2]
[386536544,1758366614845,480.0,0.00020788,2]
[386536545,1758366614874,480.0,0.00020788,2]
[386536546,1758366615122,485.43648394,0.00020788,2]
[386536547,1758366616849,480.0,0.00020788,2]
[386536548,1758366618685,375.07186092,0.00020788,2]
[386536549,1758366618710,104.92813908,0.00020788,2]
[386536550,1758366619043,480.0,0.00020788,2]
[386536551,1758366622814,480.0,0.00020788,2]
[386536552,1758366630631,480.0,0.00020788,2]
[386536633,1758366633170,480.0,0.00020788,2]
[386536644,1758366633277,480.0,0.00020788,2]
[386536740,1758366634642,1291.7,0.00020787,2]
[386536741,1758366634715,480.0,0.00020788,2]
[386536757,1758366638239,480.0,0.00020788,2]
[386536758,1758366638282,480.0,0.00020788,2]
[386536781,1758366640225,-441.1530741,0.00020789,2]
[386536791,1758366640397,-1621.90886022,0.00020789,2]
[386536792,1758366640409,-109125.15675894,0.00020789,2]
[386536793,1758366640424,-749.12691578,0.00020789,2]
[386536794,1758366640436,-1008.12445267,0.00020789,2]
[386536795,1758366640449,-37252.40109663,0.00020789,2]
[386536796,1758366640541,491.11764647,0.00020788,2]
[386536797,1758366641834,480.0,0.00020788,2]
[386536798,1758366642444,480.0,0.00020788,2]
[386536802,1758366643309,-2110.86278513,0.00020789,2]
[386536803,1758366643320,-3785.32477194,0.00020789,2]
[386536804,1758366643362,-800.3032821,0.00020789,2]
[386536805,1758366644397,480.0,0.00020788,2]
[386536806,1758366644534,480.0,0.00020788,2]
[386536807,1758366645415,519.33,0.00019332,2]
[386536808,1758366645820,1038.65,0.00020253,2]
[386536815,1758366646123,480.0,0.00020788,2]
[386536816,1758366646398,-182345.59800249,0.00020789,2]
[386536817,1758366646407,-500.0,0.000208,2]
[386536818,1758366646417,-500.0,0.000208,2]
[386536819,1758366646426,-539.0,0.00020811,2]
[386536820,1758366646441,-182.6810043,0.00020834,2]
[386536821,1758366646455,-482.17722392,0.00020884,2]
[386536822,1758366646469,-480.0,0.00020884,2]
[386536823,1758366646483,-480.0,0.00020884,2]
[386536824,1758366646494,-500.0,0.00020884,2]
[386536825,1758366646507,-500.0,0.00020884,2]
[386536826,1758366646520,-500.0,0.00020884,2]
[386536827,1758366646533,-494.03260056,0.00020884,2]
[386536828,1758366646545,-500.0,0.00020885,2]
[386536829,1758366646558,-480.0,0.00020885,2]
[386536830,1758366646571,-480.0,0.00020885,2]
[386536831,1758366646584,-480.0,0.00020885,2]
[386536832,1758366646599,-480.0,0.00020885,2]
[386536833,1758366646611,-480.0,0.00020885,2]
[386536834,1758366646624,-480.0,0.00020885,2]
[386536835,1758366646636,-480.0,0.00020885,2]
[386536836,1758366646647,-480.0,0.00020885,2]
[386536837,1758366646660,-500.0,0.00020885,2]
[386536838,1758366646674,-481.59835698,0.00020885,2]
[386536839,1758366646686,-480.0,0.00020885,2]
[386536840,1758366646698,-480.0,0.00020885,2]
[386536841,1758366646708,-210.92125438,0.00020885,2]
[386536842,1758366646720,-821.1,0.00020885,2]
[386536843,1758366646732,-480.0,0.00020885,2]
[386536844,1758366646745,-480.0,0.00020885,2]
[386536845,1758366646758,-480.0,0.00020885,2]
[386536846,1758366646772,-489.00014418,0.00020885,2]
[386536847,1758366646784,-480.0,0.00020885,2]
[386536848,1758366646797,-151.0,0.00020885,2]
[386536849,1758366646811,-151.75518171,0.00020885,2]
[386536850,1758366646827,-151.0,0.00020885,2]
[386536851,1758366646839,-151.0,0.00020885,2]
[386536852,1758366646850,-426.0,0.00020885,2]
[386536853,1758366646861,-500.0,0.00020885,2]
[386536854,1758366646872,-151.46554282,0.00020885,2]
[386536855,1758366646887,-151.0,0.00020885,2]
[386536856,1758366646899,-225.36110923,0.00020885,2]
[386536857,1758366646913,-151.0,0.00020885,2]
[386536858,1758366646923,-151.0,0.00020885,2]
[386536859,1758366646936,-161.99331737,0.00020885,2]
[386536860,1758366646947,-151.0,0.00020885,2]
[386536861,1758366646959,-151.0,0.00020885,2]
[386536862,1758366646970,-151.28328039,0.00020885,2]
[386536863,1758366646980,-151.32378433,0.00020885,2]
[386536864,1758366646990,-158.11516009,0.00020885,2]
[386536865,1758366647003,-151.48107111,0.00020885,2]
[386536866,1758366647015,-480.0,0.00020885,2]
[386536867,1758366647027,-480.0,0.00020885,2]
[386536868,1758366647038,-487.83103666,0.00020885,2]
[386536869,1758366647049,-480.0,0.00020885,2]
[386536870,1758366647060,-480.0,0.00020885,2]
[386536871,1758366647072,-482.36352754,0.00020885,2]
[386536872,1758366647083,-482.41158339,0.00020885,2]
[386536873,1758366647094,-151.0,0.00020885,2]
[386536874,1758366647106,-151.0,0.00020885,2]
[386536875,1758366647117,-151.0,0.00020885,2]
[386536876,1758366647128,-231.00000004,0.00020885,2]
[386536877,1758366647140,-480.0,0.00020885,2]
[386536878,1758366647151,-481.43906927,0.00020885,2]
[386536879,1758366647162,-482.0211243,0.00020885,2]
[386536880,1758366647173,-480.0,0.00020885,2]
[386536881,1758366647184,-480.0,0.00020885,2]
[386536882,1758366647195,-480.0,0.00020885,2]
[386536883,1758366647206,-480.0,0.00020885,2]
[386536884,1758366647217,-480.0,0.00020885,2]
[386536885,1758366647229,-151.53827853,0.00020886,2]
[386536886,1758366647241,-198.94063915,0.00020886,2]
[386536887,1758366647252,-483.59391725,0.00020886,2]
[386536888,1758366647263,-480.94820254,0.00020887,2]
[386536889,1758366647275,-480.0,0.00020887,2]
[386536890,1758366647286,-480.0,0.00020887,2]
[386536891,1758366647296,-481.18431392,0.00020887,2]
[386536892,1758366647308,-481.95093117,0.00020887,2]
[386536893,1758366647319,-480.0,0.00020887,2]
[386536894,1758366647331,-480.0,0.00020887,2]
[386536895,1758366647343,-480.0,0.00020887,2]
[386536896,1758366647354,-487.76313734,0.00020887,2]
[386536897,1758366647365,-480.0,0.00020887,2]
[386536898,1758366647377,-349.45317395,0.00020887,2]
[386536899,1758366647388,-480.0,0.00020887,2]
[386536900,1758366647399,-480.0,0.00020887,2]
[386536901,1758366647410,-500.0,0.00020887,2]
[386536902,1758366647421,-480.0,0.00020887,2]
[386536903,1758366647432,-471.12559201,0.00020887,2]
[386536904,1758366647443,-480.0,0.00020887,2]
[386536905,1758366647455,-480.0,0.00020887,2]
[386536906,1758366647467,-480.0,0.00020887,2]
[386536907,1758366647478,-480.0,0.00020887,2]
[386536908,1758366647489,-480.0,0.00020887,2]
[386536909,1758366647501,-485.48199263,0.00020887,2]
[386536910,1758366647512,-480.0,0.00020887,2]
[386536911,1758366647522,-480.0,0.00020887,2]
[386536912,1758366647623,-480.0,0.00020887,2]
[386536913,1758366647670,-486.31441079,0.00020887,2]
[386536914,1758366647680,-480.93821348,0.00020887,2]
[386536915,1758366647690,-485.4662172,0.00020887,2]
[386536916,1758366647699,-480.0,0.00020887,2]
[386536917,1758366647708,-480.0,0.00020887,2]
[386536918,1758366647718,-1009.00919175,0.00020887,2]
[386536919,1758366647727,-480.0,0.00020887,2]
[386536920,1758366647736,-486.59817678,0.00020887,2]
[386536921,1758366647745,-485.33889406,0.00020887,2]
[386536922,1758366647755,-544.73112227,0.00020887,2]
[386536923,1758366647764,-480.0,0.00020887,2]
[386536924,1758366647774,-480.0,0.00020887,2]
[386536925,1758366647783,-480.0,0.00020887,2]
[386536926,1758366647793,-480.0,0.00020887,2]
[386536927,1758366647803,-493.88103569,0.00020887,2]
[386536928,1758366647813,-480.0,0.00020887,2]
[386536929,1758366647822,-500.0,0.00020887,2]
[386536930,1758366647835,-480.0,0.00020887,2]
[386536931,1758366647844,-480.0,0.00020887,2]
[386536932,1758366647854,-480.0,0.00020887,2]
[386536933,1758366647863,-480.0,0.00020887,2]
[386536934,1758366647874,-480.0,0.00020887,2]
[386536935,1758366647883,-480.0,0.00020887,2]
[386536936,1758366647893,-486.64709653,0.00020887,2]
[386536937,1758366647902,-480.0,0.00020887,2]
[386536938,1758366647913,-480.0,0.00020887,2]
[386536939,1758366647922,-482.69659118,0.00020887,2]
[386536940,1758366647931,-410.81415132,0.00020887,2]
[386536941,1758366647941,-486.05134783,0.00020887,2]
[386536942,1758366647951,-480.0,0.00020887,2]
[386536943,1758366647960,-480.0,0.00020887,2]
[386536944,1758366647970,-480.0,0.00020887,2]
[386536945,1758366647979,-480.0,0.00020887,2]
[386536946,1758366647989,-480.0,0.00020887,2]
[386536947,1758366647999,-480.0,0.00020887,2]
[386536948,1758366648009,-480.0,0.00020887,2]
[386536949,1758366648018,-480.0,0.00020887,2]
[386536950,1758366648028,-480.0,0.00020887,2]
[386536951,1758366648038,-480.0,0.00020887,2]
[386536952,1758366648047,-480.0,0.00020887,2]
[386536953,1758366648057,-480.0,0.00020887,2]
[386536954,1758366648066,-480.0,0.00020887,2]
[386536955,1758366648075,-480.0,0.00020887,2]
[386536956,1758366648085,-480.0,0.00020887,2]
[386536957,1758366648095,-480.0,0.00020887,2]
[386536958,1758366648104,-480.0,0.00020887,2]
[386536959,1758366648113,-484.13766007,0.00020887,2]
[386536960,1758366648123,-480.0,0.00020887,2]
[386536961,1758366648132,-501.86224629,0.00020887,2]
[386536962,1758366648141,-480.0,0.00020887,2]
[386536963,1758366648151,-484.10180066,0.00020887,2]
[386536964,1758366648160,-480.0,0.00020887,2]
[386536965,1758366648170,-492.8191877,0.00020887,2]
[386536966,1758366648179,-480.0,0.00020887,2]
[386536967,1758366648188,-185.46625712,0.00020887,2]
[386536968,1758366648198,-480.0,0.00020887,2]
[386536969,1758366648207,-480.0,0.00020887,2]
[386536970,1758366648216,-480.0,0.00020887,2]
[386536971,1758366648226,-480.0,0.00020887,2]
[386536972,1758366648235,-484.30445465,0.00020887,2]
[386536973,1758366648246,-482.3610513,0.00020887,2]
[386536974,1758366648255,-480.0,0.00020887,2]
[386536975,1758366648264,-480.0,0.00020887,2]
[386536976,1758366648275,-480.0,0.00020887,2]
[386536977,1758366648284,-480.0,0.00020887,2]
[386536978,1758366648294,-183.27258129,0.00020887,2]
[386536979,1758366648303,-480.0,0.00020887,2]
[386536980,1758366648313,-480.0,0.00020887,2]
[386536981,1758366648323,-486.27465845,0.00020887,2]
[386536982,1758366648332,-480.0,0.00020887,2]
[386536983,1758366648342,-480.0,0.00020887,2]
[386536984,1758366648352,-486.02115282,0.00020887,2]
[386536985,1758366648362,-480.0,0.00020887,2]
[386536986,1758366648373,-1055.13670808,0.00020887,2]
[386536987,1758366648383,-481.68008329,0.00020887,2]
[386536988,1758366648393,-480.0,0.00020887,2]
[386536989,1758366648403,-482.26681247,0.00020887,2]
[386536990,1758366648413,-480.0,0.00020887,2]
[386536991,1758366648423,-480.0,0.00020887,2]
[386536992,1758366648432,-481.64190403,0.00020887,2]
[386536993,1758366648442,-480.0,0.00020887,2]
[386536994,1758366648452,-480.0,0.00020887,2]
[386536995,1758366648462,-480.0,0.00020887,2]
[386536996,1758366648471,-480.0,0.00020887,2]
[386536997,1758366648480,-402.3297003,0.00020887,2]
[386536998,1758366648490,-484.56252254,0.00020887,2]
[386536999,1758366648500,-613.84784745,0.00020887,2]
[386537000,1758366648509,-480.0,0.00020887,2]
[386537001,1758366648519,-177.30227265,0.00020887,2]
[386537002,1758366648529,-483.88913415,0.00020887,2]
[386537003,1758366648539,-480.0,0.00020887,2]
[386537004,1758366648549,-480.0,0.00020887,2]
[386537005,1758366648559,-480.0,0.00020887,2]
[386537006,1758366648568,-480.0,0.00020887,2]
[386537007,1758366648578,-485.35738128,0.00020887,2]
[386537008,1758366648587,-498.06838388,0.00020887,2]
[386537009,1758366648597,-482.75647172,0.00020887,2]
[386537010,1758366648607,-480.0,0.00020887,2]
[386537011,1758366648616,-303.14802735,0.00020887,2]
[386537012,1758366648626,-480.0,0.00020887,2]
[386537013,1758366648636,-482.71048408,0.00020887,2]
[386537014,1758366648645,-481.59013207,0.00020887,2]
[386537015,1758366648655,-480.0,0.00020887,2]
[386537016,1758366648664,-480.0,0.00020887,2]
[386537017,1758366648674,-494.64263295,0.00020887,2]
[386537018,1758366648684,-480.0,0.00020887,2]
[386537019,1758366648693,-510.23126763,0.00020887,2]
[386537020,1758366648704,-480.0,0.00020887,2]
[386537021,1758366648714,-480.0,0.00020887,2]
[386537022,1758366648724,-151.0,0.00020887,2]
[386537023,1758366648734,-481.42122547,0.00020887,2]
[386537024,1758366648745,-151.0,0.00020887,2]
[386537025,1758366648755,-151.0,0.00020887,2]
[386537026,1758366648765,-159.540982,0.00020887,2]
[386537027,1758366648775,-483.49726164,0.00020887,2]
[386537028,1758366648785,-480.0,0.00020887,2]
[386537029,1758366648795,-482.88788865,0.00020887,2]
[386537030,1758366648805,-151.0,0.00020887,2]
[386537031,1758366648815,-151.0,0.00020887,2]
[386537032,1758366648824,-151.0,0.00020887,2]
[386537033,1758366648838,-480.0,0.00020887,2]
[386537034,1758366648847,-482.14593466,0.00020887,2]
[386537035,1758366648858,-151.0,0.00020887,2]
[386537036,1758366648869,-480.0,0.00020887,2]
[386537037,1758366648879,-482.53504545,0.00020887,2]
[386537038,1758366648889,-480.0,0.00020887,2]
[386537039,1758366648901,-480.0,0.00020887,2]
[386537040,1758366648911,-480.0,0.00020887,2]
[386537041,1758366648921,-480.0,0.00020887,2]
[386537042,1758366648931,-4820.51161698,0.00020888,3]
[386537043,1758366649863,-2267.57106673,0.00020888,3]
[386537044,1758366649882,-10000.01,0.00020888,3]
[386537045,1758366649896,-5171.73275642,0.00020888,3]
[386537046,1758366649906,-480.0,0.00020888,2]
[386537047,1758366650015,-480.0,0.00020888,2]
[386537048,1758366650025,-3868.27724358,0.00020888,2]
[386537049,1758366650043,-896.27275642,0.00020888,2]
[386537050,1758366650053,-860.95,0.00020888,2]
[386537051,1758366657498,-480.0,0.00020788,2]
[386537052,1758366657526,-480.0,0.00020887,2]
[386537053,1758366657554,-500.0,0.00020889,2]
[386537054,1758366657582,-485.8338855,0.00020889,2]
[386537055,1758366657609,-500.0,0.00020889,2]
[386537056,1758366657637,-500.0,0.00020889,2]
[386537057,1758366657664,-500.0,0.00020889,2]
[386537058,1758366657692,-500.0,0.00020889,2]
[386537059,1758366657720,-500.0,0.00020889,2]
[386537060,1758366657748,-500.0,0.00020889,2]
[386537061,1758366657861,-151.60275062,0.00020889,2]
[386537062,1758366657892,-1610.08,0.00020889,2]
[386537063,1758366657920,-391.9122,0.00020889,2]
[386537064,1758366657948,-391.9122,0.00020889,2]
[386537065,1758366657976,-391.9122,0.00020889,2]
[386537066,1758366658005,-391.9122,0.00020889,2]
[386537067,1758366658033,-151.0,0.00020889,2]
[386537068,1758366658061,-302.694988,0.00020889,2]
[386537069,1758366658090,-151.0,0.00020889,2]
[386537070,1758366658123,-302.694988,0.00020889,2]
[386537071,1758366658152,-302.694988,0.00020889,2]
[386537072,1758366658179,-302.694988,0.00020889,2]
[386537073,1758366658207,-151.0,0.00020889,2]
[386537074,1758366658330,-480.0,0.00020887,2]
[386537075,1758366658359,-151.0,0.00020889,2]
[386537076,1758366658388,-151.0,0.00020889,2]
[386537077,1758366658415,-154.585927,0.00020889,2]
[386537078,1758366658443,-151.0,0.00020889,2]
[386537079,1758366658471,-151.0,0.00020889,2]
[386537080,1758366658499,-151.0,0.00020889,2]
[386537081,1758366658526,-151.0,0.00020889,2]
[386537082,1758366658553,-151.0,0.00020889,2]
[386537083,1758366658581,-151.0,0.00020889,2]
[386537084,1758366658609,-151.0,0.00020889,2]
[386537085,1758366658736,-151.0,0.00020889,2]
[386537086,1758366658765,-210.93479,0.00020889,2]
[386537087,1758366658794,-151.0,0.00020889,2]
[386537088,1758366658824,-210.93479,0.00020889,2]
[386537089,1758366658858,-210.93479,0.00020889,2]
[386537090,1758366658888,-210.93479,0.00020889,2]
[386537091,1758366658916,-151.0,0.00020889,2]
[386537092,1758366658945,-163.374669,0.00020889,2]
[386537093,1758366658973,-163.374669,0.00020889,2]
[386537094,1758366659002,-163.374669,0.00020889,2]
[386537095,1758366659030,-163.374669,0.00020889,2]
[386537096,1758366659059,-151.0,0.00020889,2]
[386537097,1758366659087,-151.875404,0.00020889,2]
[386537098,1758366659117,-423.823541,0.00020889,2]
[386537099,1758366659146,-235.141043,0.00020889,2]
[386537100,1758366659336,-188.682498,0.00020889,2]
[386537101,1758366659365,-423.823541,0.00020889,2]
[386537102,1758366659394,-423.823541,0.00020889,2]
[386537103,1758366659422,-151.0,0.00020889,2]
[386537104,1758366659451,-151.0,0.00020889,2]
[386537105,1758366659480,-151.0,0.00020889,2]
[386537106,1758366659508,-151.0,0.00020889,2]
[386537107,1758366659537,-151.0,0.0002089,2]
[386537108,1758366659565,-151.0,0.0002089,2]
[386537109,1758366659593,-151.0,0.0002089,2]
[386537110,1758366659621,-151.41083,0.0002089,2]
[386537111,1758366659650,-151.0,0.0002089,2]
[386537112,1758366659677,-151.0,0.0002089,2]
[386537113,1758366659706,-151.0,0.0002089,2]
[386537114,1758366659734,-151.0,0.0002089,2]
[386537115,1758366659762,-151.0,0.0002089,2]
[386537116,1758366659791,-151.0,0.0002089,2]
[386537117,1758366659819,-151.0,0.0002089,2]
[386537118,1758366659849,-332.751676,0.0002089,2]
[386537119,1758366659879,-151.0,0.0002089,2]
[386537120,1758366659908,-332.751676,0.0002089,2]
[386537121,1758366659941,-151.0,0.0002089,2]
[386537122,1758366659969,-332.751676,0.0002089,2]
[386537123,1758366659998,-332.751676,0.0002089,2]
[386537124,1758366660154,-151.0,0.0002089,2]
[386537125,1758366660182,-259.729459,0.0002089,2]
[386537126,1758366660209,-151.0,0.0002089,2]
[386537127,1758366660237,-151.0,0.0002089,2]
[386537128,1758366660266,-151.0,0.0002089,2]
[386537129,1758366660296,-151.0,0.0002089,2]
[386537130,1758366660324,-151.0,0.0002089,2]
[386537131,1758366660352,-151.0,0.0002089,2]
[386537132,1758366660385,-151.0,0.0002089,2]
[386537133,1758366660413,-151.0,0.0002089,2]
[386537134,1758366660440,-151.0,0.0002089,2]
[386537135,1758366660467,-151.0,0.0002089,2]
[386537136,1758366660498,-151.0,0.0002089,2]
[386537137,1758366660526,-151.0,0.0002089,2]
[386537138,1758366660650,-151.0,0.0002089,2]
[386537139,1758366660679,-151.0,0.0002089,2]
[386537140,1758366660707,-240.575503,0.0002089,2]
[386537141,1758366660735,-500.0,0.00020905,2]
[386537142,1758366660764,-327.50758581,0.00020905,2]
[386537143,1758366660794,-151.0,0.00020905,2]
[386537144,1758366660822,-151.0,0.00020905,2]
[386537145,1758366660853,-268.464948,0.00020905,2]
[386537146,1758366660881,-268.464948,0.00020905,2]
[386537147,1758366660910,-268.464948,0.00020905,2]
[386537148,1758366660940,-268.464948,0.00020905,2]
[386537149,1758366661105,-151.0,0.00020905,2]
[386537150,1758366661133,-151.0,0.00020905,2]
[386537151,1758366661160,-151.0,0.00020905,2]
[386537152,1758366661188,-269.465777,0.00020905,2]
[386537153,1758366661216,-157.066583,0.00020905,2]
[386537154,1758366661244,-157.066583,0.00020905,2]
[386537155,1758366661274,-157.066583,0.00020905,2]
[386537156,1758366661302,-157.066583,0.00020905,2]
[386537157,1758366661329,-1443.04014179,0.00020917,2]
[386537158,1758366661356,-151.0,0.0002093,2]
[386537159,1758366661384,-151.0,0.0002093,2]
[386537160,1758366661412,-151.0,0.0002093,2]
[386537161,1758366661445,-151.0,0.0002093,2]
[386537162,1758366661473,-151.0,0.0002093,2]
[386537163,1758366661503,-539.22397,0.0002093,2]
[386537164,1758366661532,-539.22397,0.0002093,2]
[386537165,1758366661561,-206.34564842,0.0002093,2]
[386537166,1758366661740,-179.18309237,0.00020788,2]
[386537167,1758366661772,-332.87832158,0.0002093,2]
[386537168,1758366661801,-539.22397,0.0002093,2]
[386537169,1758366661832,-151.0,0.0002093,2]
[386537170,1758366661864,-151.0,0.0002093,2]
[386537171,1758366661894,-151.0,0.0002093,2]
[386537172,1758366661926,-151.0,0.0002093,2]
[386537173,1758366661953,-151.0,0.0002093,2]
[386537174,1758366661981,-182.6810043,0.00020968,2]
[386537175,1758366662012,-1152.0090227,0.00020972,2]